Cogmind - Beta 13 --- EXPLORER MODE // 2024.04.01 @ 00:51:37 Player: Sator Result: Destroyed by Y-45 Defender with Beam Rifle Performance ------------- Evolutions (2) 1000 Regions Visited (4) 800 Robots Destroyed (47) 235 Value Destroyed (1587) 1587 Prototype IDs (7) 140 Alien Tech Used (0) 0 Bonus (0) 0 TOTAL SCORE: 3762 Bonus ------- None Cogmind --------- Core Integrity 0/550 Matter 300/300 Energy 290/290 System Corruption 0% Temperature Warning (332) Movement Core (700) Ox13 Location -8/Storage Parts ------- > --- POWER (2) -------- Light Ion Engine Improved Ion Engine > --- PROPULSION (2) --- Light Treads Backup Propulsion I > --- UTILITY (5) ------ Large Storage Unit Targeting Computer Drone Bay (2/2) > --- WEAPON (3) ------- Advanced Beam Rifle Light EM Pulse Cannon > --- INVENTORY (15) --- Backup Power I Targeting Computer Heavy EM Shotgun Small Laser Proton Missile Launcher Peak State ------------ > --- POWER ------------ Improved Ion Engine > --- PROPULSION ------- Light Treads > --- UTILITY ---------- Heat Sink Targeting Computer Layered Light Armor Plating Layered Light Armor Plating > --- WEAPON ----------- Heavy EM Shotgun Precision Beam Rifle Advanced Beam Cannon > --- INVENTORY -------- Light Ion Engine Light Treads Targeting Computer Small Laser Proton Missile Launcher [Rating: 24] Favorites ----------- Power Improved Ion Engine Engine Improved Ion Engine Propulsion Light Treads Treads Light Treads Hover Unit Backup Propulsion I Flight Unit Flight Unit Utility Targeting Computer Device Drone Bay Storage Large Storage Unit Processor Targeting Computer Hackware Hacking Suite Protection Layered Light Armor Plating Weapon Light EM Pulse Cannon Energy Gun Advanced Beam Rifle Energy Cannon Light EM Pulse Cannon Ballistic Gun Enhanced Autogun Launcher Proton Missile Launcher Build | -11 -10 -9 -8 -8 ------- Run | Yrd Mat Mat Mat Sto Slots Evolved 5 | . 1 2 2 . Power 1 | . . 1 . . Propulsion . | . . . . . Utility 3 | . 1 . 2 . Weapon 1 | . . 1 . . Parts Attached 48 | 7 8 18 3 12 Power 8 | 1 3 2 . 2 Engine 8 | 1 3 2 . 2 Core . | . . . . . Reactor . | . . . . . Propulsion 8 | 2 4 1 . 1 Treads 6 | 2 2 1 . 1 Leg . | . . . . . Wheel . | . . . . . Hover . | . . . . . Flight 2 | . 2 . . . Utility 11 | 2 1 4 2 2 Device 2 | . . 1 . 1 Storage 1 | . . . . 1 Processor 1 | 1 . . . . Hackware 1 | . . 1 . . Protection 6 | 1 1 2 2 . Artifact . | . . . . . Weapon 21 | 2 . 11 1 7 Energy Gun 8 | 2 . 2 . 4 Energy Cannon 3 | . . . . 3 Ballistic Gun 9 | . . 9 . . Ballistic Cannon . | . . . . . Launcher 1 | . . . 1 . Special Weapon . | . . . . . Impact Weapon . | . . . . . Slashing Weapon . | . . . . . Piercing Weapon . | . . . . . Special Melee Weapon . | . . . . . Unidentified Prototypes 5 | . . 1 . 4 Parts Lost 7 | . . . 1 6 Power 2 | . . . 1 1 Propulsion . | . . . . . Utility 4 | . . . . 4 Weapon 1 | . . . . 1 Highest Loss Streak 1 | . . . 1 1 To Critical Strikes . | . . . . . Average Slot Usage (%) 72 | . 80 76 71 71 Engine 14 | . 12 10 10 14 Treads 8 | . 18 9 8 8 Hover 5 | . . . . 7 Device 6 | . . 1 8 6 Storage 3 | . . . . 4 Processor 8 | . 12 10 8 8 Protection 4 | . 12 9 10 2 Energy Gun 9 | . 25 10 14 8 Energy Cannon 6 | . . . . 7 Ballistic Gun 2 | . . 18 8 . Naked Turns . | . . . . . Heaviest Build 42 | 10 12 24 29 42 Greatest Support 40 | 40 40 20 20 20 Greatest Overweight (x) 13 | . 3 5 1 13 Average Overweight (x) 4 | . . . . 7 Largest Inventory Capacity 15 | 5 5 5 5 15 Average Capacity 9 | 5 5 5 5 10 Most Carried 5 | 5 5 5 5 5 Average Carried 4 | 3 4 4 4 4 Final Capacity 15 | 5 5 5 5 15 Final Carried 5 | 5 4 4 5 5 Class Distribution -------------------- 78% | Hacker-Mutant 13% | Hacker-Gunner 7% | Hacker-Tank Dominant Class ---------------- Hacker-Mutant | -10/Materials Hacker-Gunner | -9/Materials Hacker-Gunner | -8/Materials Hacker-Mutant | -8/Storage Resources | -11 -10 -9 -8 -8 ----------- Run | Yrd Mat Mat Mat Sto Matter Collected 966 | 251 64 157 113 381 Remotely . | . . . . . Salvage Created 1788 | . 136 315 194 1143 Parts 104 | . 10 27 8 59 Haulers Intercepted . | . . . . . Recyclers Shooed 1 | . . 1 . . Parts Field Recycled . | . . . . . Retrieved Matter . | . . . . . Parts Self-Destructed . | . . . . . Prevented . | . . . . . Kills | -11 -10 -9 -8 -8 ------- Run | Yrd Mat Mat Mat Sto Combat Hostiles Destroyed 36 | . 5 8 3 20 Guns 25 | . 4 8 3 10 Cannons 7 | . . . . 7 AOE 4 | . 1 . . 3 Classes Destroyed 8 | . 2 3 . 3 Builder 3 | . . . . 3 Recycler 1 | . . . . 1 Operator 2 | . . 1 . 1 Watcher 5 | . . 1 2 2 Swarmer 9 | . 3 4 . 2 Grunt 18 | . 2 2 3 11 Sentry 8 | . . 2 . 6 Hunter 1 | . . . . 1 Best Kill Streak 4 | . 3 4 2 4 Combat Bots Only 4 | . 3 3 1 4 Max Kills in Single Turn 2 | . 2 2 2 2 Gunslinging 1 | . . 1 1 . Exploded 2 | . 1 . . 2 Melee . | . . . . . Uniques/NPCs Destroyed . | . . . . . Combat | -11 -10 -9 -8 -8 -------- Run | Yrd Mat Mat Mat Sto Hostile Shots Fired 211 | . 44 17 40 110 Missed 57 | . 9 4 17 27 Damage Taken 1758 | . 259 96 222 1181 Core 625 | . 59 13 31 522 Absorbed by Shields . | . . . . . Redirected to Shielding 104 | . . 19 65 20 Ignored by Resistances 857 | . 167 61 134 495 Core Remaining (%) 90 | 100 76 96 . . Volleys Fired 116 | . 8 17 17 74 Largest 3 | . 2 3 3 3 Hottest 185 | . 90 115 119 185 Shots Fired 282 | . 16 48 51 167 Gun 208 | . 16 48 51 93 Cannon 69 | . . . . 69 Launcher 5 | . . . . 5 Special . | . . . . . Kinetic 57 | . . 29 17 11 Thermal 142 | . 8 9 34 91 Explosive . | . . . . . Electromagnetic 83 | . 8 10 . 65 Robot Hit Streak 51 | . 13 28 25 51 Robot Miss Streak 1 | . . 1 1 1 Penetration Max . | . . . . . Secondary Targets 2 | . . 1 1 . Max Gunslinging Chain 1 | . . 1 1 . Shots Hit Robots 192 | . 13 35 46 98 Core Hits 81 | . 7 15 12 47 Critical Kills . | . . . . . Critical Parts Destroyed . | . . . . . Critical Strikes 15 | . 1 1 5 8 Burn 14 | . 1 . 5 8 Corrupt 1 | . . 1 . . Melee Attacks . | . . . . . Impact . | . . . . . Slashing . | . . . . . Piercing . | . . . . . Sneak Attacks . | . . . . . Combat Hostiles . | . . . . . Follow-up Attacks . | . . . . . Damage Inflicted 3659 | . 236 485 642 2296 Guns 2398 | . 159 485 634 1120 Cannons 764 | . . . . 764 Explosions 467 | . 75 . . 392 Melee . | . . . . . Ramming 30 | . 2 . 8 20 Kinetic 645 | . . 283 242 120 Thermal 1929 | . 148 87 392 1302 Explosive 25 | . . . . 25 Electromagnetic 1030 | . 86 115 . 829 Impact . | . . . . . Slashing . | . . . . . Piercing . | . . . . . Highest Corruption . | . . . . . Average Corruption . | . . . . . Corruption Purged . | . . . . . Corruption Blocked . | . . . . . Overload Shots . | . . . . . Overflow Damage 48 | . 13 . . 35 Projectiles . | . . . . . Explosions 48 | . 13 . . 35 Melee . | . . . . . Knockbacks . | . . . . . Impact . | . . . . . Kinetic . | . . . . . Secondary . | . . . . . Self-Inflicted Damage 111 | . 21 . . 90 Shots 4 | . 1 . . 3 Rammed 15 | . 1 . 1 13 Targets Rammed 15 | . 1 . 1 13 Kicked . | . . . . . Crushed . | . . . . . Highest Temperature 1119 | . 184 182 326 1119 Average Temperature 175 | . 76 45 168 204 Received Heat Transfer 939 | . 159 42 207 531 Effects 59 | . . . 2 57 Shutdowns 9 | . . . . 9 Energy Bleed 3 | . . . 1 2 Interference 6 | . . . 1 5 Matter Decay 6 | . . . . 6 Short Circuit 1 | . . . . 1 Damage (minor) 6 | . . . . 6 Damage (major) 24 | . . . . 24 Damage (core) 4 | . . . . 4 Siege Activations . | . . . . . Robots Corrupted . | . . . . . Combat Hostiles . | . . . . . Parts Fried 2 | . . . . 2 Impact Corruptions . | . . . . . Robots Melted . | . . . . . Combat Hostiles . | . . . . . Parts Melted 6 | . . 1 1 4 Heat Transferred 4797 | . 396 259 1325 2817 Parts Sabotaged . | . . . . . Parts Stolen . | . . . . . Parts Stripped . | . . . . . Power Chain Reactions 3 | . 1 . . 2 Alert | -11 -10 -9 -8 -8 ------- Run | Yrd Mat Mat Mat Sto Peak Influence 288 | . 138 288 98 282 Initial 41 | . . 41 6 29 Average 47 | . 94 139 54 34 Maximum Alert Level 1 | . . 1 . 1 Low Security (%) 93 | 100 100 57 100 96 Level 1 6 | . . 42 . 3 Level 2 . | . . . . . Level 3 . | . . . . . Level 4 . | . . . . . Level 5 . | . . . . . High Security . | . . . . . Max Security . | . . . . . Squads Dispatched 8 | . . . 1 7 Investigation 2 | . . . 1 1 Extermination . | . . . . . Reinforcement 3 | . . . . 3 Assault . | . . . . . Garrison 3 | . . . . 3 Intercept . | . . . . . Searches Triggered . | . . . . . Construction Impeded . | . . . . . Haulers Reinforced . | . . . . . Active Scanning Responses . | . . . . . Cargo Convoy Interrupts . | . . . . . Stealth | -11 -10 -9 -8 -8 --------- Run | Yrd Mat Mat Mat Sto Distress Signals 4 | . 1 1 1 1 Communications Jammed . | . . . . . Distress Signals . | . . . . . Times Spotted 53 | . 7 12 5 29 Peak Tracking Total 7 | . 7 4 4 4 Tactical Retreats . | . . . . . Traps | -11 -10 -9 -8 -8 ------- Run | Yrd Mat Mat Mat Sto Traps Triggered 5 | . . 3 . 2 Indirectly . | . . . . . Trap Hack Attempts . | . . . . . Triggered . | . . . . . Disarmed . | . . . . . Reprogrammed . | . . . . . Reused . | . . . . . Traps Extracted . | . . . . . Installed . | . . . . . Triggered . | . . . . . Machines | -11 -10 -9 -8 -8 ---------- Run | Yrd Mat Mat Mat Sto Machines Disabled 9 | . . . . 9 Max in Single Turn 1 | . . . . 1 Machines Repaired . | . . . . . Machines Dismantled . | . . . . . Machines Sabotaged . | . . . . . Overloaded Fab Kills . | . . . . . Hacking | -11 -10 -9 -8 -8 --------- Run | Yrd Mat Mat Mat Sto Machines Accessed 5 | . . . 1 4 Terminals 3 | . . . 1 2 Fabricators . | . . . . . Repair Stations 2 | . . . . 2 Recycling Units . | . . . . . Scanalyzers . | . . . . . Garrison Access . | . . . . . Total Hacks 16 | . . . 8 8 Successful 8 | . . . 4 4 Failed 8 | . . . 4 4 Catastrophic 1 | . . . . 1 Database Lockouts . | . . . . . Manual 8 | . . . 2 6 Terminals 13 | . . . 8 5 Fabricators . | . . . . . Repair Stations 3 | . . . . 3 Recycling Units . | . . . . . Scanalyzers . | . . . . . Garrison Access . | . . . . . Terminal Hacks 6 | . . . 4 2 Prototype ID Bank 1 | . . . 1 . Open Door 1 | . . . . 1 Alert Level 3 | . . . 2 1 Zone Layout 1 | . . . 1 . Fabricator Hacks . | . . . . . Repair Station Hacks 2 | . . . . 2 Scan Component 1 | . . . . 1 Refit 1 | . . . . 1 Recycling Unit Hacks . | . . . . . Scanalyzer . | . . . . . Garrison Access Hacks . | . . . . . Unauthorized Hacks . | . . . . . Terminals . | . . . . . Fabricators . | . . . . . Repair Stations . | . . . . . Recycling Units . | . . . . . Scanalyzers . | . . . . . Garrison Access . | . . . . . Data Cores Recovered . | . . . . . Used . | . . . . . Hacking Detections 2 | . . . 1 1 Full Trace Events 2 | . . . 1 1 Feedback Events . | . . . . . Feedback Blocked . | . . . . . Robot Schematics Acquired . | . . . . . Robots Built . | . . . . . Authchips . | . . . . . Time . | . . . . . Total Robot Build Rating . | . . . . . Part Schematics Acquired . | . . . . . Parts Built . | . . . . . Authchips . | . . . . . Time . | . . . . . Total Part Build Rating . | . . . . . Parts Repaired . | . . . . . Time . | . . . . . Parts Recycled . | . . . . . Recycled Matter . | . . . . . Retrieved Matter . | . . . . . Retrieved Components . | . . . . . Parts Scanalyzed . | . . . . . Part Schematics Acquired . | . . . . . Parts Damaged . | . . . . . Bothacking | -11 -10 -9 -8 -8 ------------ Run | Yrd Mat Mat Mat Sto Used RIF Installer . | . . . . . Robots Hacked . | . . . . . Non-combat . | . . . . . Combat . | . . . . . Robot Hacks Applied . | . . . . . Relay Couplers Released . | . . . . . Fabnet Peak Effective % . | . . . . . Robots Rewired . | . . . . . Allies Hacked . | . . . . . Hacks Repelled . | . . . . . Allies | -11 -10 -9 -8 -8 -------- Run | Yrd Mat Mat Mat Sto Total Allies . | . . . . . Largest Group . | . . . . . Highest-Rated Group . | . . . . . Highest-Rated Ally . | . . . . . Total Orders . | . . . . . Ally Attacks . | . . . . . Total Damage . | . . . . . Kills . | . . . . . Allies Corrupted . | . . . . . Allies Melted . | . . . . . Intel | -11 -10 -9 -8 -8 ------- Run | Yrd Mat Mat Mat Sto Robot Analysis Total . | . . . . . Derelict Logs Recovered . | . . . . . Drone Launches . | . . . . . Drone Recoveries . | . . . . . Exploration | -11 -10 -9 -8 -8 ------------- Run | Yrd Mat Mat Mat Sto Turns Passed 5033 | 159 231 515 238 3890 Spaces Moved 1335 | 106 117 261 88 763 Core 600 | 23 1 7 . 569 Treads 689 | 83 116 254 88 148 Legs . | . . . . . Wheels . | . . . . . Hover 46 | . . . . 46 Flight . | . . . . . Fastest Speed 50 | 50 160 150 160 160 Average Speed 338 | 136 160 168 201 468 Slowest Speed 700 | 160 200 300 240 700 Overloaded Moves . | . . . . . Propulsion Burnouts . | . . . . . Robots Hopped . | . . . . . Cave-ins Triggered . | . . . . . Exploration Rate (%) 24 | 4 14 23 7 74 Regions Visited 4 Branch Regions 1 Pre-discovered Areas . | . . . . . Known Exits Taken 4 | 1 1 1 1 . Unknown Exits Taken . | . . . . . Scrap Searched . | . . . . . Spaces Dug . | . . . . . Terrain Destroyed 34 | . 2 . . 32 Melee . | . . . . . Projectile . | . . . . . AOE 34 | . 2 . . 32 Terrain Rammed . | . . . . . Walls Destroyed . | . . . . . Machines Disabled . | . . . . . Actions | -11 -10 -9 -8 -8 --------- Run | Yrd Mat Mat Mat Sto Total 1555 | 118 147 307 109 874 Wait . | . . . . . Move 1331 | 105 116 260 87 763 Hop . | . . . . . Pick Up 11 | 6 3 2 . . Fast Attach 35 | 6 . 17 3 9 Attach 7 | 1 4 . . 2 Detach 12 | . 5 2 1 4 Swap 6 | . 4 1 . 1 Drop 20 | . 6 8 . 6 Fire 116 | . 8 17 17 74 Melee . | . . . . . Ram 10 | . . . . 10 Kick . | . . . . . Crush 5 | . 1 . 1 3 Escape Stasis 2 | . . . . 2 Rewire . | . . . . . Trap . | . . . . . Miscellaneous . | . . . . . Route ------- -11/Scrapyard -10/Materials -9/Materials -8/Materials -8/Storage History --------- Turn | Location | Event 26 | -11/Scrapyard | Identified exit to Materials 26 | -11/Scrapyard | Discovered exit to Materials (range 15) 160 | -11/Scrapyard | Entered Materials 160 | -10/Materials | Evolved 1 slot: Utility x1 336 | -10/Materials | Build established: Hacker-Mutant 347 | -10/Materials | Identified exit to Materials 347 | -10/Materials | Discovered exit to Materials (range 6) 391 | -10/Materials | Entered another Materials area 391 | -9/Materials | Evolved 2 slots: Power x1, Weapon x1 735 | -9/Materials | Build established: Hacker-Gunner 819 | -9/Materials | Identified exit to Materials 819 | -9/Materials | Discovered exit to Materials (range 8) 906 | -9/Materials | Entered another Materials area 906 | -8/Materials | Evolved 2 slots: Utility x2 947 | -8/Materials | Identified exit to Storage 947 | -8/Materials | Discovered exit to Storage (range 10) 1144 | -8/Materials | Entered Storage 1387 | -8/Storage | Build established: Hacker-Tank 1438 | -8/Storage | Core integrity fell below 50% 1459 | -8/Storage | Core integrity fell below 20% 1887 | -8/Storage | Garrison activated, responded to threat 1911 | -8/Storage | Build established: Hacker-Mutant 5034 | -8/Storage | Destroyed by Y-45 Defender with Beam Rifle Last Messages --------------- 04304_ Slammed into A-02 Transporter. 04315_ K-01 Serf cleans the Transfer Shaft. 04780_ Slammed into A-02 Transporter. 04962_ O-16 Technician: "IFF HANDSHAKE FAILED. SECURING TERMINAL." 04964_ O-16 Technician uses terminal to summon reinforcements. 04964_ ALERT: Hostiles spotted, dispatching reinforcements to Terminal S014. 04964_ O-16 Technician locks terminal. Use the buttons at the bottom right of the parts list, or press c/e/w/q, to visualize various stats related to parts and inventory items. 05020_ Critical hit (Burn: +37). 05025_ Terminal disabled. 05027_ G-47 Trooper destroyed. 05029_ Critical hit (Burn: +37). 05030_ Y-45 Defender suffers critical hit (Burn). [Achievement: First Step to Greatness] Map ----- +----------------------------------------------------+ | | | | | | | | | | | ????????????????????????????????????????# | | ????????????????????????????????????????# | | ????????????????????????????????????????# | | ????????????????????????????????????????# | | ????????????????????????????????????????# | | ???????????????? ?????????????????????# | | ???????????????? ????????????????????# | | ???????????????? ????????????????????# | | ???????????????# #??????###########???# | | ???????????????# #??????# ##### | | ???????????????#gY #??????# """ # ^ | | ???????????????# ! #??????# """"?" # | | ???????????????# %g#??????# "????" +%%## | | ???????????????+ [ #??????# "????" # #? | | ???????????????#a #??????# "?"""" # ## | | ???????????????# #??????# """ + | | ???????????????#u ###????# # | | ???????????????# ""#????############### | | ???????###??#??# "#??????????????????? | | ???????#!!!!" ?# ""#??????????????????? | | ????????? #@ #????????????????????? | | ????????????" + #????????????????????? | | ???????????????# #????????????????????? | | ???????????????# #????????????????????? | | ???????????????# +??????????????????### | | ???????????????# #?????????????######T# | | ???????????????# #?????????????#!!! # + | | ???????????????# #?????????????# # | | ???????????????# #?????????????#!!!!# # | | ???????????????# #?????????????######## | | ???????????????# #????????????????????? | | ???????????????# #????????????????????? | | ???????????????# #????????????????????? | | ???????????????# #????????????????????? | | ???????????????# #????????????????????? | | ???????????????# #????????????????????? | | ???????????????# #????????????????????? | | ???????????????# #????????????????????? | | ???????????????# #????????????????????? | | ???????????????# #?????????####### ?? | | ???????????????# #?????????# # #? | | ???????????????# #?????????# # #? | | ???????????????# #?????????# # #? | | ???????????????# #?????????# # #? | | ???????????????# #?????????# # #? | +----------------------------------------------------+ Best States ------------- Heat Dissipation 41 Energy Generation 17 Energy Capacity 415 Matter Stores 300 Matter Capacity 300 Sight Range 16 Terrain Scan Density 10 Armor Coverage 300 Resistance: KI 35 Resistance: TH 35 Resistance: EX 35 Resistance: EM 35 Resistance: I 35 Resistance: S 35 Resistance: P 35 Weapon Shielding 66 Evasion (%) 50 Targeting Accuracy 5 Recoil Reduction 2 Offensive Hacking 30 Item Schematics ----------------- None Robot Schematics ------------------ None Fabricated ------------ Nothing Alien Tech Used ----------------- None Achievements -------------- Crack Shot First Step to Greatness One Hack Too Far Risk Taker Troublemaker Uninvited Guest Challenges ------------ None Game ------ Seed EncryptedResetClaw Manual? 0 Play Time 01:19:33 Cumulative 1.2 hours Start 2024.03.31 @ 22:53:49 End 2024.04.01 @ 00:51:37 Sessions 10 Manual Loads 0 Difficulty Explorer Special Mode None Game No. 1 Rogue 0 Adventurer 0 Explorer 1 Win Type - Total 0 Types 0/0/0/0/0/0/0/0/0 Lore% 0 Gallery% 2 Achievement% 2 Wizard Run 0 Options --------- Layout 1 ASCII 0 Keyboard 1 Movement Arrows Keybinds 0 Fullscreen 1 Font 24/Smallcaps Map View 50x35 Zoom Use 0% Tactical HUD 1 Map Filters NONE Filters NONE Steam 0 RUN: d1802ae1-c8a4-46e6-a60c-d8fbb50e287b